Cogmind - Beta 9.4 *** ADVENTURER MODE // 2020.03.18 @ 16:01:47 Player: Amao Result: Destroyed by G-47 Trooper with Particle Gun Performance ------------- Evolutions (1) 500 Regions Visited (6) 1200 Robots Destroyed (37) 185 Value Destroyed (807) 807 Prototype IDs (0) 0 Alien Tech Used (0) 0 Bonus (0) 0 TOTAL SCORE: 2692 Bonus ------- None Cogmind --------- Core Integrity 0/400 Matter 300/300 Energy 78/100 System Corruption 0% Temperature Cool (310) Movement Core (50) Location -8/Mines Parts ------- > --- POWER (1) -------- (None) > --- PROPULSION (3) --- (None) > --- UTILITY (2) ------ (None) > --- WEAPON (3) ------- (None) > --- INVENTORY (4) ---- Humpback Improved Terrain Scanner Particle Gun Peak State ------------ > --- POWER ------------ Light Nuclear Core > --- PROPULSION ------- Wheel Wheel Wheel > --- UTILITY ---------- Medium Storage Unit Improved Terrain Scanner > --- WEAPON ----------- Shock Rifle Heavy Assault Rifle Improved Light Cannon > --- INVENTORY -------- Ion Engine Wheel Wheel Compact Wheel Small Storage Unit Shock Rifle Ion Cannon [Rating: 17] Favorites ----------- Power Light Nuclear Core Engine Light Ion Engine Power Core Light Nuclear Core Propulsion Wheel Wheel Wheel Utility Improved Terrain Scanner Device Improved Terrain Scanner Storage High-capacity Storage Unit Protection Light Armor Plating Weapon Improved Light Cannon Energy Gun Shock Rifle Energy Cannon Ion Cannon Ballistic Gun Heavy Assault Rifle Ballistic Cannon Improved Light Cannon Build | -11 -10 -10 -9 -9 -9 -8 ------- Run | Scr Mat Min Mat Min Exi Min Slots Evolved 2 | . . . 2 . . . Power . | . . . . . . . Propulsion 1 | . . . 1 . . . Utility . | . . . . . . . Weapon 1 | . . . 1 . . . Parts Attached 25 | 6 2 1 6 1 1 8 Power 3 | 1 . . 1 . . 1 Engine 1 | 1 . . . . . . Core 2 | . . . 1 . . 1 Reactor . | . . . . . . . Propulsion 8 | 2 . . 1 1 . 4 Treads . | . . . . . . . Leg . | . . . . . . . Wheel 8 | 2 . . 1 1 . 4 Hover . | . . . . . . . Flight . | . . . . . . . Utility 5 | 1 1 . 1 . 1 1 Device 1 | . 1 . . . . . Storage 3 | 1 . . 1 . 1 . Processor . | . . . . . . . Hackware . | . . . . . . . Protection 1 | . . . . . . 1 Artifact . | . . . . . . . Weapon 9 | 2 1 1 3 . . 2 Energy Gun 3 | 1 . . 1 . . 1 Energy Cannon 2 | . 1 . . . . 1 Ballistic Gun 3 | 1 . 1 1 . . . Ballistic Cannon 1 | . . . 1 . . . Launcher . | . . . . . . . Special Weapon . | . . . . . . . Impact Weapon . | . . . . . . . Slashing Weapon . | . . . . . . . Piercing Weapon . | . . . . . . . Special Melee Weapon . | . . . . . . . Unidentified Prototypes . | . . . . . . . Parts Lost 17 | . . . 2 1 . 14 Power 3 | . . . 1 . . 2 Propulsion 7 | . . . . 1 . 6 Utility 1 | . . . . . . 1 Weapon 6 | . . . 1 . . 5 Highest Loss Streak 8 | . . . 1 1 . 8 Average Slot Usage (%) 96 | . 96 100 97 99 100 88 Engine 1 | . 14 14 3 . . . Core 9 | . . . 7 11 11 10 Wheel 31 | . 28 28 33 32 33 29 Device 11 | . 11 14 11 11 11 10 Storage 11 | . 14 14 11 11 11 11 Energy Gun 9 | . 14 14 4 11 11 9 Energy Cannon 1 | . 11 8 . . . 3 Ballistic Gun 10 | . 1 5 16 11 11 6 Ballistic Cannon 8 | . . . 9 11 11 6 Naked Turns 5 | . . . . . . 5 Heaviest Build 49 | 10 14 14 24 24 48 49 Greatest Support 36 | 20 20 20 30 30 30 36 Greatest Overweight (x) 16 | . . . . 1 1 16 Average Overweight (x) . | . . . . . . 1 Largest Inventory Capacity 12 | 6 6 6 8 8 12 12 Average Capacity 9 | 5 6 6 6 8 10 11 Most Carried 12 | 6 6 6 8 8 11 12 Average Carried 8 | 2 5 5 6 7 9 11 Final Capacity 12 | 6 6 6 8 8 12 4 Final Carried 11 | 6 5 6 8 8 11 4 Class Distribution -------------------- 73% | Skirmisher 26% | Mutant Dominant Class ---------------- Mutant | -10/Materials Mutant | -10/Mines Skirmisher | -9/Materials Skirmisher | -9/Mines Skirmisher | -9/Exiles Mutant | -8/Mines Resources | -11 -10 -10 -9 -9 -9 -8 ----------- Run | Scr Mat Min Mat Min Exi Min Matter Collected 939 | 264 . 54 159 241 . 221 Remotely . | . . . . . . . Salvage Created 974 | 64 . 109 203 181 . 417 Parts 60 | 9 . 3 14 9 . 25 Haulers Intercepted . | . . . . . . . Recyclers Shooed . | . . . . . . . Parts Field Recycled . | . . . . . . . Retrieved Matter . | . . . . . . . Parts Self-Destructed . | . . . . . . . Prevented . | . . . . . . . Kills | -11 -10 -10 -9 -9 -9 -8 ------- Run | Scr Mat Min Mat Min Exi Min Combat Hostiles Destroyed 33 | . . 2 9 8 . 14 Guns 26 | . . 1 7 6 . 12 Cannons 4 | . . . 1 1 . 2 AOE 2 | . . . 1 1 . . Classes Destroyed 5 | 1 . 1 1 1 . 1 Tunneler 4 | 3 . . . . . 1 Swarmer 19 | . . . 4 6 . 9 Grunt 11 | . . 2 5 1 . 3 Brawler 2 | . . . . 1 . 1 Hunter 1 | . . . . . . 1 Best Kill Streak 5 | 3 . 2 5 5 . 4 Combat Bots Only 5 | . . 2 5 5 . 4 Max Kills in Single Turn 2 | 1 . 1 2 1 . 1 Gunslinging . | . . . . . . . Exploded 1 | . . . 1 1 . . Melee . | . . . . . . . Uniques/NPCs Destroyed . | . . . . . . . Combat | -11 -10 -10 -9 -9 -9 -8 -------- Run | Scr Mat Min Mat Min Exi Min Damage Taken 1585 | 1 . 98 261 138 . 1087 Core 436 | . . 36 49 13 . 338 Absorbed by Shields . | . . . . . . . Core Remaining (%) 92 | 100 . 85 . . . . Volleys Fired 77 | 4 . 11 16 11 . 35 Largest 3 | 2 . 2 3 3 . 3 Hottest 112 | 60 . 96 112 112 . 112 Shots Fired 182 | 8 . 22 43 33 . 76 Gun 120 | 8 . 19 30 22 . 41 Cannon 62 | . . 3 13 11 . 35 Launcher . | . . . . . . . Special . | . . . . . . . Kinetic 120 | 4 . 8 41 22 . 45 Thermal 12 | . . . . . . 12 Explosive . | . . . . . . . Electromagnetic 50 | 4 . 14 2 11 . 19 Robot Hit Streak 25 | 6 . 8 25 8 . 15 Robot Miss Streak 3 | . . 1 2 3 . 2 Penetration Max . | . . . . . . . Secondary Targets . | . . . . . . . Shots Hit Robots 119 | 6 . 18 34 17 . 44 Core Hits 53 | 3 . 4 14 9 . 23 Critical Hits 3 | 1 . . 1 1 . . Critical Kills 1 | 1 . . . . . . Critical Parts Destroyed 2 | . . . 1 1 . . Melee Attacks . | . . . . . . . Impact . | . . . . . . . Slashing . | . . . . . . . Piercing . | . . . . . . . Sneak Attacks . | . . . . . . . Combat Hostiles . | . . . . . . . Follow-up Attacks . | . . . . . . . Damage Inflicted 1990 | 69 . 245 633 282 . 761 Guns 1249 | 66 . 198 367 199 . 419 Cannons 600 | . . 47 196 18 . 339 Explosions 135 | . . . 70 65 . . Melee . | . . . . . . . Ramming 6 | 3 . . . . . 3 Kinetic 1098 | 14 . 61 553 95 . 375 Thermal 275 | . . . 70 65 . 140 Explosive . | . . . . . . . Electromagnetic 611 | 52 . 184 10 122 . 243 Impact . | . . . . . . . Slashing . | . . . . . . . Piercing . | . . . . . . . Highest Corruption . | . . . . . . . Average Corruption . | . . . . . . . Corruption Purged . | . . . . . . . Overload Shots . | . . . . . . . Overflow Damage . | . . . . . . . Projectiles . | . . . . . . . Explosions . | . . . . . . . Melee . | . . . . . . . Knockbacks 8 | . . . 3 . . 5 Impact . | . . . . . . . Kinetic 7 | . . . 3 . . 4 Secondary 1 | . . . . . . 1 Self-Inflicted Damage 30 | 1 . . 28 . . 1 Shots 1 | . . . 1 . . . Rammed 2 | 1 . . . . . 1 Targets Rammed 2 | 1 . . . . . 1 Kicked . | . . . . . . . Crushed . | . . . . . . . Highest Temperature 369 | 20 . 120 161 246 . 369 Average Temperature 91 | 15 . 83 78 89 . 104 Received Heat Transfer 711 | . . 72 144 . . 495 Siege Activations . | . . . . . . . Robots Corrupted 1 | . . 1 . . . . Combat Hostiles 1 | . . 1 . . . . Parts Fried 3 | . . 2 . 1 . . Impact Corruptions . | . . . . . . . Robots Melted . | . . . . . . . Combat Hostiles . | . . . . . . . Parts Melted . | . . . . . . . Heat Transferred 422 | . . . 100 100 . 222 Parts Sabotaged . | . . . . . . . Parts Stolen . | . . . . . . . Parts Stripped . | . . . . . . . Power Chain Reactions 2 | . . . 1 1 . . Missiles Intercepted . | . . . . . . . Alert | -11 -10 -10 -9 -9 -9 -8 ------- Run | Scr Mat Min Mat Min Exi Min Peak Influence 247 | 15 27 58 247 246 . 224 Average Influence 110 | 3 10 19 137 177 . 118 Maximum Alert Level 1 | . . . 1 1 . 1 Low Security (%) 77 | 100 100 100 84 45 . 73 Level 1 22 | . . . 15 54 . 26 Level 2 . | . . . . . . . Level 3 . | . . . . . . . Level 4 . | . . . . . . . Level 5 . | . . . . . . . High Security . | . . . . . . . Max Security . | . . . . . . . Squads Dispatched . | . . . . . . . Investigation . | . . . . . . . Extermination . | . . . . . . . Reinforcement . | . . . . . . . Assault . | . . . . . . . Garrison . | . . . . . . . Intercept . | . . . . . . . Construction Impeded . | . . . . . . . Haulers Reinforced . | . . . . . . . Stealth | -11 -10 -10 -9 -9 -9 -8 --------- Run | Scr Mat Min Mat Min Exi Min Distress Signals 1 | . . . 1 . . . Communications Jammed . | . . . . . . . Distress Signals . | . . . . . . . Times Spotted 46 | . 1 2 13 9 . 21 Peak Tracking Total 9 | . . 2 5 4 . 9 Tactical Retreats 1 | . . . . . . 1 Traps | -11 -10 -10 -9 -9 -9 -8 ------- Run | Scr Mat Min Mat Min Exi Min Traps Triggered . | . . . . . . . Indirectly . | . . . . . . . Trap Hack Attempts . | . . . . . . . Triggered . | . . . . . . . Disarmed 6 | . 6 . . . . . Reprogrammed . | . . . . . . . Reused . | . . . . . . . Traps Extracted . | . . . . . . . Installed . | . . . . . . . Triggered . | . . . . . . . Machines | -11 -10 -10 -9 -9 -9 -8 ---------- Run | Scr Mat Min Mat Min Exi Min Machines Disabled 1 | . . . 1 . . . Max in Single Turn 1 | . . . 1 . . . Machines Sabotaged . | . . . . . . . Garrisons Compromised . | . . . . . . . Overloaded Fab Kills . | . . . . . . . Fab Network Shutdowns . | . . . . . . . Hacking | -11 -10 -10 -9 -9 -9 -8 --------- Run | Scr Mat Min Mat Min Exi Min Machines Accessed 7 | . 3 . 3 . 1 . Terminals 5 | . 3 . 2 . . . Fabricators . | . . . . . . . Repair Stations . | . . . . . . . Recycling Units 1 | . . . 1 . . . Scanalyzers . | . . . . . . . Garrison Access . | . . . . . . . Total Hacks 16 | . 5 . 6 . 5 . Successful 14 | . 5 . 4 . 5 . Failed 2 | . . . 2 . . . Catastrophic . | . . . . . . . Database Lockouts . | . . . . . . . Manual 2 | . 1 . 1 . . . Terminals 9 | . 5 . 4 . . . Fabricators . | . . . . . . . Repair Stations . | . . . . . . . Recycling Units 2 | . . . 2 . . . Scanalyzers . | . . . . . . . Garrison Access . | . . . . . . . Terminal Hacks 11 | . 4 . 2 . 5 . Record 5 | . . . . . 5 . Alert Level 1 | . 1 . . . . . Unreport Threat 1 | . . . 1 . . . Locate Traps 1 | . 1 . . . . . Disarm Traps 1 | . 1 . . . . . Assault Status 1 | . . . 1 . . . Zone Layout 1 | . 1 . . . . . Fabricator Hacks . | . . . . . . . Repair Station Hacks . | . . . . . . . Recycling Unit Hacks 1 | . . . 1 . . . Retrieve Components 1 | . . . 1 . . . Scanalyzer . | . . . . . . . Garrison Access Hacks . | . . . . . . . Unauthorized Hacks 4 | . 2 . 2 . . . Terminals 2 | . 1 . 1 . . . Track 2 | . 1 . 1 . . . Fabricators . | . . . . . . . Repair Stations . | . . . . . . . Recycling Units . | . . . . . . . Scanalyzers . | . . . . . . . Garrison Access . | . . . . . . . Data Cores Recovered . | . . . . . . . Used . | . . . . . . . Hacking Detections 3 | . 2 . 1 . . . Full Trace Events 1 | . 1 . . . . . Feedback Events . | . . . . . . . Feedback Blocked . | . . . . . . . Robot Schematics Acquired . | . . . . . . . Robots Built . | . . . . . . . Matter . | . . . . . . . Time . | . . . . . . . Total Robot Build Rating . | . . . . . . . Part Schematics Acquired . | . . . . . . . Parts Built . | . . . . . . . Matter . | . . . . . . . Time . | . . . . . . . Total Part Build Rating . | . . . . . . . Parts Repaired . | . . . . . . . Time . | . . . . . . . Parts Recycled . | . . . . . . . Recycled Matter . | . . . . . . . Retrieved Matter . | . . . . . . . Retrieved Components 9 | . . . 9 . . . Parts Scanalyzed . | . . . . . . . Part Schematics Acquired . | . . . . . . . Parts Damaged . | . . . . . . . Bothacking | -11 -10 -10 -9 -9 -9 -8 ------------ Run | Scr Mat Min Mat Min Exi Min Used RIF Installer . | . . . . . . . Robots Hacked . | . . . . . . . Non-combat . | . . . . . . . Combat . | . . . . . . . Robot Hacks Applied . | . . . . . . . Relay Couplers Released . | . . . . . . . Robots Rewired . | . . . . . . . Allies Hacked . | . . . . . . . Hacks Repelled . | . . . . . . . Allies | -11 -10 -10 -9 -9 -9 -8 -------- Run | Scr Mat Min Mat Min Exi Min Total Allies 3 | . . . . 3 . . Largest Group 3 | . . . . 3 . . Highest-Rated Group 40 | . . . . 40 . . Highest-Rated Ally 16 | . . . . 16 . . Total Orders . | . . . . . . . Ally Attacks . | . . . . . . . Total Damage . | . . . . . . . Kills . | . . . . . . . Allies Corrupted . | . . . . . . . Allies Melted . | . . . . . . . Intel | -11 -10 -10 -9 -9 -9 -8 ------- Run | Scr Mat Min Mat Min Exi Min Robot Analysis Total . | . . . . . . . Derelict Logs Recovered 1 | . . 1 . . . . Drone Launches . | . . . . . . . Drone Recoveries . | . . . . . . . Exploration | -11 -10 -10 -9 -9 -9 -8 ------------- Run | Scr Mat Min Mat Min Exi Min Turns Passed 2224 | 77 112 109 358 246 876 446 Spaces Moved 2168 | 65 130 73 348 245 998 309 Core 19 | 14 . . . . . 5 Treads . | . . . . . . . Legs . | . . . . . . . Wheels 2149 | 51 130 73 348 245 998 304 Hover . | . . . . . . . Flight . | . . . . . . . Fastest Speed 50 | 50 80 80 80 80 80 50 Average Speed 84 | 73 80 80 80 80 86 94 Slowest Speed 850 | 80 80 80 80 90 90 850 Overloaded Moves . | . . . . . . . Propulsion Burnouts . | . . . . . . . Robots Hopped . | . . . . . . . Cave-ins Triggered . | . . . . . . . Exploration Rate (%) 40 | 3 25 13 36 54 92 58 Regions Visited 6 Branch Regions 4 Pre-discovered Areas 1 | . . . . . 1 . Known Exits Taken . | . . . . . . . Unknown Exits Taken 6 | 1 1 1 1 1 1 . Scrap Searched 2 | . . . . 1 . 1 Spaces Dug . | . . . . . . . Terrain Destroyed 13 | . . . 3 6 . 4 Melee . | . . . . . . . Projectile 5 | . . . . 1 . 4 AOE 8 | . . . 3 5 . . Actions | -11 -10 -10 -9 -9 -9 -8 --------- Run | Scr Mat Min Mat Min Exi Min Total 2398 | 87 139 101 398 269 1008 396 Wait 67 | . . 15 6 12 . 34 Move 2163 | 65 129 72 347 244 997 309 Hop . | . . . . . . . Pick Up 47 | 12 4 1 15 1 8 6 Fast Attach . | . . . . . . . Attach 24 | 6 2 1 6 1 1 7 Detach 3 | . . 1 1 . . 1 Swap 1 | . . . . . . 1 Drop 15 | . 4 . 7 . 2 2 Fire 77 | 4 . 11 16 11 . 35 Melee . | . . . . . . . Ram 1 | . . . . . . 1 Kick . | . . . . . . . Crush . | . . . . . . . Escape Stasis . | . . . . . . . Rewire . | . . . . . . . Trap . | . . . . . . . Miscellaneous . | . . . . . . . Route ------- -11/Scrapyard -10/Materials -10/Mines -9/Materials -9/Mines -9/Exiles (discovered 2 exits: [*Min x2]) -8/Mines History --------- Turn | Location | Event 22 | -11/Scrapyard | Discovered new exit (range 16) 78 | -11/Scrapyard | Entered Materials 152 | -10/Materials | Discovered new exit (range 14) 190 | -10/Materials | Entered Mines 281 | -10/Mines | Learned Materials stockpile data 295 | -10/Mines | Discovered new exit (range 6) 299 | -10/Mines | Entered Materials 299 | -9/Materials | Evolved 2 slots: Propulsion x1, Weapon x1 320 | -9/Materials | Build established: Mutant 636 | -9/Materials | Discovered new exit (range 10) 654 | -9/Materials | Build established: Skirmisher 657 | -9/Materials | Entered Mines 838 | -9/Mines | Assisted by bots powering up and referring to "LRC-V3" 900 | -9/Mines | Deemed a non-threat by the Exiles lab entrance 900 | -9/Mines | Discovered new exit (range 5) 903 | -9/Mines | Entered Exiles 916 | -9/Exiles | Discovered new exit (range 15) 928 | -9/Exiles | Met 8R-AWN 940 | -9/Exiles | Met EX-HEX 970 | -9/Exiles | Met EX-DEC 995 | -9/Exiles | Visited The Gauntlet 1110 | -9/Exiles | Learned location of Zion (-7) 1203 | -9/Exiles | Discovered new exit (range 14) 1268 | -9/Exiles | Met EX-BIN 1779 | -9/Exiles | Entered Mines 2091 | -8/Mines | Lost 5 parts (1p2n2w) 2196 | -8/Mines | Core integrity fell below 50% 2223 | -8/Mines | Core integrity fell below 20% 2225 | -8/Mines | Destroyed by G-47 Trooper with Particle Gun Last Messages --------------- Acquired Rnf. Ion Engine. Acquired 2 matter. Acquired Lgt. Armor Plating. C-30 ARC bursts open, deploying its payload. S-10 Pest unfolds itself. Wheel destroyed. Com. Wheel destroyed. S-10 Pest destroyed. Wheel destroyed. S-10 Pest destroyed. Lgt. Nuclear Core destroyed. G-47 Trooper destroyed. Lgt. Armor Plating destroyed. Shock Rifle destroyed. Ion Cannon destroyed. Dropped Hcp. Storage Unit. G-47 Trooper destroyed. Slammed into G-50 Soldier. Dropped Rnf. Ion Engine. Acquired Particle Gun. Map ----- +----------------------------------------------------+ | | | | | | | | | | | | | | | ?????????????????????????????????????????????????? | | ?????????????????????????????????????????????????? | | ?????????????????????????????????????????????????? | | ???????????????????#?????????????????????????????? | | ?????????????????????????????????????????????????? | | ?????????????????????????????????????????????????? | | ?????????????????????????????????????????????????? | | ?????????????????????????????????????????????????? | | ???????????#?????????????????????????????????????? | | ???????????????????#?????????????????????????????? | | ??????????????????????????????#??????????????????? | | ?????????????????????????????????????????????????? | | ?????????????????????###??????????????? ?????????? | | ?????????????????????#!##?????????????" ?????#???? | | ?????????????????????#**##????????????" ? ?? ????? | | ????????? ???????????#!*[###?????????"" ??? ????? | | ??????? ?????????????##%gg!##????????? ? ???#? | | ????????#?? ?????????##g!%% #?#??????"" """ ??#??? | | ??????????????????####=g=@* #?????????" """ ?????? | | ??????????????????# [ #?????????? """ ?????? | | ??????????????????# % ##?????????? ??????? | | ??????????????????# ## #??????????? ???#??? | | ??????????????????### ## #???????????# #??????? | | ????????????????????# ## ##??????????# #??????? | | ??????????? ????????#% ## ##??????????# #??????? | | ?????????????"" ##%"# ##?????????# #??????? | | ??????????? " #######???# #??????? | | ??????????? #???# #????#?? | | ??????????? ### ## ### #??## #??????? | | ?????????????????## ?## ## ##?# #??## ######?? | | ??????????????????# ??# ?#####??# #???# ##? | | ??????????????????#???# ?????#??# ##### ## | | ????????????????###??## #????#??# # | | ????????????????# ??? #?#????## # | | ????????????????# #???# #?###### ## ## | | ??????????????#?# ##??# ##?# ##? | | ???????????????## ##?# ######### ##??# ##?? | | ?????#?????????# ### #??????## #?#?###?#? | | ??????????????## #?# #??##### ###??????? | | ????########### ### #### ###??##?? | | ?#### ## ##????# | | ?## # # ## #????? | | ## " #### ## #### #???#? | +----------------------------------------------------+ Best States ------------- Heat Dissipation 28 Energy Generation 14 Energy Capacity 160 Matter Stores 300 Matter Capacity 300 Sight Range 16 Terrain Scan Range 16 Terrain Scan Density 10 Armor Coverage 150 Resistance: KI 20 Resistance: TH 20 Resistance: EX 20 Resistance: EM 20 Resistance: I 20 Resistance: S 20 Resistance: P 20 Evasion (%) 50 Offensive Hacking 10 Item Schematics ----------------- None Robot Schematics ------------------ None Fabricated ------------ Nothing Alien Tech Used ----------------- None Achievements -------------- None Challenges ------------ None Game ------ Seed SpikedShadeDiverter Manual? 0 Play Time 00:17:12 Cumulative 27.0 hours Start 2020.03.18 @ 15:35:58 End 2020.03.18 @ 16:01:47 Sessions 1 Manual Loads 0 Difficulty Adventurer Special Mode None Game No. 33 Rogue 10 Adventurer 23 Explorer 0 Win Type - Total 1 Types 1/0/0/0/0/0/0 Lore% 19 Gallery% 34 Achievement% 27 Wizard Run 0 Options --------- ASCII 0 Keyboard 1 Movement Vi Keybinds 0 Fullscreen 1 Font 18/Terminus Map View 76x50 Tactical HUD 0 Map Filters NONE Filters NONE Steam 1 RUN: 29d59b34-1625-4fd8-8e00-9511d146ba90